bitfinex/quotes_SOLUSD_20260118
["timestamp","ask_amount","ask_price","bid_price","bid_amount"]
[1768703460471,4.65204072,142.46,142.43,2.43412355]
[1768703460669,5.24700525,142.45,142.43,2.43412355]
[1768703460872,4.65204072,142.46,142.43,2.43412355]
[1768703461065,5.24700525,142.45,142.43,2.43412355]
[1768703461263,4.65204072,142.46,142.43,2.43412355]
[1768703461470,5.24721455,142.45,142.43,2.43412355]
[1768703461670,4.65204072,142.46,142.43,2.43412355]
[1768703461878,5.24722774,142.45,142.43,2.43412355]
[1768703462176,4.65204072,142.46,142.43,2.43412355]
[1768703462377,5.24723615,142.45,142.43,2.43412355]
[1768703462579,4.65204072,142.46,142.43,2.43412355]
[1768703462783,5.24723615,142.45,142.43,2.43412355]
[1768703462986,4.65204072,142.46,142.43,2.43412355]
[1768703463287,5.24723615,142.45,142.43,2.43412355]
[1768703463785,4.65204072,142.46,142.43,2.43412355]
[1768703464087,7.3685409,142.45,142.43,2.43412355]
[1768703464276,7.01912562,142.47,142.44,2.50318252]
[1768703464481,7.36896335,142.46,142.44,2.50318252]
[1768703464789,5.24862523,142.45,142.44,2.50318252]
[1768703466085,5.24862523,142.46,142.44,2.50318252]
[1768703466268,5.24862523,142.45,142.44,2.50318252]
[1768703466668,5.24862523,142.46,142.44,2.50318252]
[1768703466989,5.24862523,142.45,142.44,2.50318252]
[1768703467185,5.24862523,142.46,142.44,2.50318252]
[1768703467389,5.2490092,142.45,142.44,2.50318252]
[1768703472283,5.24932383,142.45,142.44,2.50318252]
[1768703474594,11.5191067,142.47,142.44,2.50318252]
[1768703474799,5.24949095,142.46,142.44,2.50318252]
[1768703474983,5.24949095,142.45,142.44,2.50318252]
[1768703477601,35.0886969,142.51,142.44,7.02049985]
[1768703477789,2.12033812,142.48,142.45,2.50318252]
[1768703478093,2.12033812,142.48,142.44,7.02049985]
[1768703478094,2.37967531,142.48,142.44,9.52368237]
[1768703485108,2.37967531,142.48,142.45,2.55544598]
[1768703490917,2.37967531,142.48,142.45,9.5754408]
[1768703491814,2.37967531,142.48,142.45,7.01999482]
[1768703504428,4.50001343,142.48,142.45,7.01999482]
[1768703509735,2.43501417,142.47,142.45,7.01999482]
[1768703514223,2.48379791,142.46,142.43,26.91838532]
[1768703515144,4.60413603,142.46,142.43,26.91838532]
[1768703517341,2.12005729,142.46,142.44,2.34491064]
[1768703518639,4.6038552,142.46,142.44,7.02000779]
[1768703519924,2.12005729,142.46,142.44,9.36491843]
[1768703522747,4.6038552,142.47,142.44,9.36491843]
[1768703523042,2.12005729,142.47,142.43,17.55248192]
[1768703523246,2.48379791,142.46,142.43,19.89739256]
[1768703524245,4.6038552,142.47,142.44,2.34491064]
[1768703525226,4.6038552,142.47,142.44,9.36500513]
[1768703525421,4.6038552,142.46,142.44,9.36500513]
[1768703526728,2.48379791,142.46,142.44,9.36500513]
[1768703526934,2.48379791,142.46,142.43,19.89739256]
[1768703526935,4.6038552,142.46,142.43,19.89739256]
[1768703527933,4.6038552,142.46,142.43,26.91838532]
[1768703529235,2.48379791,142.46,142.43,26.91838532]
[1768703531552,4.6038552,142.46,142.43,9.3659034]
[1768703531753,4.6038552,142.44,142.41,2.34491064]
[1768703531938,4.6038552,142.43,142.4,2.34491064]
[1768703532848,2.01922845,142.43,142.4,2.34491064]
[1768703533058,2.12005729,142.43,142.41,2.34491064]
[1768703533231,4e-08,142.43,142.41,2.34491064]
[1768703534957,2.48379795,142.43,142.41,9.366726]
[1768703535955,4.6038552,142.42,142.4,9.36709945]
[1768703536250,2.12005729,142.42,142.4,9.36709945]
[1768703536455,2.0600573,142.42,142.4,9.36709945]
[1768703536660,4.54385521,142.42,142.4,9.36709945]
[1768703537458,2.0600573,142.42,142.4,9.36709945]
[1768703539435,2.48379791,142.4,142.37,0.1]
[1768703539667,2.12005729,142.39,142.37,9.46847621]
[1768703539958,2.12005729,142.39,142.38,2.34491064]
[1768703540158,4.6038552,142.4,142.38,2.34491064]
[1768703540355,4.6038552,142.4,142.37,7.12356557]
[1768703540356,4.6038552,142.39,142.37,0.1]
[1768703540545,4.6038552,142.39,142.37,7.12383766]
[1768703540742,2.12005729,142.38,142.37,7.12383766]
[1768703541047,2.12005729,142.38,142.37,9.4687483]
[1768703541249,4.6038552,142.39,142.37,7.12383766]
[1768703541858,2.48379791,142.38,142.37,0.1]
[1768703542040,4.43746475,142.39,142.37,0.1]
[1768703543270,2.12005729,142.38,142.37,0.1]
[1768703543570,2.0600573,142.38,142.37,0.1]
[1768703543750,2.01462518,142.38,142.37,0.1]
[1768703544151,4.43746475,142.39,142.37,0.1]
[1768703544353,2.31740746,142.39,142.37,0.1]
[1768703547462,4.43746475,142.39,142.37,0.1]
[1768703550259,2.31740746,142.37,142.36,0.1]
[1768703551153,2.27098477,142.37,142.35,0.1]
[1768703551473,4.39104206,142.37,142.35,0.1]
[1768703554964,2.12005729,142.36,142.35,0.1]
[1768703555156,2.27098477,142.37,142.35,0.1]
[1768703555157,4.39104206,142.37,142.35,0.1]
[1768703556379,2.27098477,142.37,142.35,0.1]
[1768703556579,4.39104206,142.37,142.35,0.1]
[1768703560281,11.41504234,142.37,142.35,0.1]
[1768703561188,2.49223379,142.36,142.35,0.1]
[1768703561893,4.61229108,142.36,142.33,2.35071624]
[1768703562092,7.02400028,142.37,142.32,20.20222379]
[1768703562093,2.12005729,142.34,142.32,20.20222379]
[1768703562391,4.61229108,142.35,142.32,20.20222379]
[1768703562557,4.61229108,142.35,142.33,2.35071624]
[1768703563172,11.63727257,142.35,142.33,2.35071624]
[1768703564279,2.49223379,142.37,142.34,2.35071624]
[1768703565565,9.5163888,142.37,142.34,2.35071624]
[1768703566377,11.63644609,142.37,142.34,2.35071624]
[1768703566863,9.5163888,142.37,142.34,2.35071624]
[1768703567064,11.63644609,142.37,142.34,2.35071624]
[1768703568375,9.51519888,142.39,142.35,2.35071624]
[1768703568575,11.63525617,142.39,142.35,2.35071624]
[1768703568774,2.49223379,142.38,142.35,2.35071624]
[1768703569176,4.61229108,142.37,142.33,2.35071624]
[1768703570487,11.63659919,142.37,142.33,2.35071624]
[1768703573479,9.5165419,142.37,142.33,2.35071624]
[1768703573675,11.63659919,142.37,142.33,2.35071624]
[1768703573880,11.61981556,142.37,142.33,2.35071624]
[1768703576505,9.49975827,142.37,142.34,2.5608743]
[1768703576793,2.47545016,142.37,142.34,2.5608743]
[1768703577092,9.49940249,142.37,142.34,2.5608743]
[1768703577390,2.47545016,142.38,142.35,2.5608743]
[1768703578202,2.47545016,142.38,142.35,1.5608743]
[1768703578497,9.49904728,142.38,142.35,1.5608743]
[1768703578695,2.47545016,142.39,142.35,1.5608743]
[1768703578894,2.47545016,142.39,142.35,2.12260547]
[1768703579279,9.49856209,142.39,142.35,9.14726673]
[1768703579470,7.02311193,142.39,142.35,9.14726673]
[1768703579675,2.47545016,142.4,142.36,2.12260547]
[1768703580088,2.47545016,142.4,142.37,2.5608743]
[1768703580297,9.49794219,142.4,142.37,2.5608743]
[1768703581997,11.62054766,142.4,142.37,2.5608743]
[1768703582394,2.47545016,142.39,142.37,2.5608743]
[1768703583397,2.47545016,142.39,142.37,2.5308743]
[1768703587400,2.47545016,142.41,142.37,2.5308743]
[1768703587600,2.47545016,142.41,142.38,2.5608743]
[1768703587802,4.59805563,142.41,142.38,2.5608743]
[1768703588482,2.47545016,142.4,142.38,2.5608743]
[1768703588685,4.59805563,142.4,142.37,2.5608743]
[1768703589896,4.59805563,142.4,142.37,9.58481902]
[1768703593301,2.47545016,142.4,142.37,9.58481902]
[1768703594809,9.14485207,142.41,142.38,2.5608743]
[1768703594810,9.49769676,142.41,142.38,2.5608743]
[1768703595105,5.23165282,142.4,142.38,2.5608743]
[1768703595289,9.49769676,142.41,142.38,2.5608743]
[1768703595484,7.70691092,142.4,142.38,2.5608743]
[1768703595708,2.47545016,142.4,142.38,2.5608743]
[1768703595911,2.47545016,142.4,142.37,2.5608743]
[1768703596806,2.47545016,142.41,142.37,2.5608743]
[1768703597014,11.61963957,142.42,142.37,2.5608743]
[1768703597508,9.4970341,142.42,142.37,2.5608743]
[1768703597710,11.61963957,142.42,142.37,2.5608743]
[1768703597904,9.14418941,142.42,142.37,7.02382596]
[1768703598110,2.47545016,142.41,142.38,2.5608743]
[1768703598300,2.12260547,142.39,142.33,20.12522692]
[1768703598508,2.47545016,142.36,142.33,9.58648457]
[1768703599213,2.47545016,142.36,142.34,2.5608743]
[1768703599714,2.47545016,142.37,142.34,2.5608743]
[1768703600309,2.47545016,142.37,142.34,9.5861925]
[1768703601107,11.62177076,142.38,142.35,2.5608743]
[1768703601315,11.62114248,142.39,142.35,2.5608743]
[1768703601503,9.49853701,142.39,142.35,2.5608743]
[1768703603397,2.47837983,142.38,142.35,2.5608743]
[1768703604418,2.47837983,142.38,142.35,9.58567145]
[1768703609532,11.62407215,142.39,142.36,2.42309841]
[1768703610508,2.47837983,142.38,142.35,9.44791467]
[1768703613129,2.47837983,142.38,142.34,2.42309841]
[1768703614231,2.47837983,142.38,142.35,9.48683706]
[1768703616422,4.6009853,142.38,142.35,9.48683706]
[1768703616604,2.49164434,142.37,142.35,9.48683706]
[1768703625742,2.12260547,142.36,142.33,24.58996904]
[1768703626124,2.12260547,142.36,142.33,27.05186757]
[1768703627741,4.61424981,142.36,142.33,27.05186757]
[1768703629133,2.49164434,142.35,142.33,7.02592566]
[1768703629358,2.49164434,142.35,142.33,9.48782419]
[1768703629862,4.61424981,142.36,142.33,9.48782419]
[1768703630739,2.49164434,142.36,142.33,9.48782419]
[1768703630952,4.61424981,142.36,142.33,9.48782419]
[1768703632859,2.12260547,142.34,142.3,0.1]
[1768703633058,2.12260547,142.32,142.3,2.5328325]
[1768703633443,2.12260547,142.32,142.3,9.55990536]
[1768703634364,2.12260547,142.33,142.3,9.55990536]
[1768703636949,2.12260547,142.33,142.29,0.1]
[1768703636950,22.40493853,142.35,142.29,2.5328325]
[1768703637153,2.12260547,142.33,142.29,2.5328325]
[1768703637847,2.12260547,142.33,142.3,9.46008614]
[1768703638174,7.0255871,142.34,142.31,2.4328325]
[1768703639170,24.58555773,142.36,142.31,2.4328325]
[1768703639364,2.12373129,142.34,142.31,2.4328325]
[1768703641569,9.14945032,142.34,142.31,2.4328325]
[1768703643466,2.12373129,142.34,142.31,2.4328325]
[1768703644684,9.14937164,142.34,142.31,2.4328325]
[1768703645079,9.16971898,142.34,142.31,2.4328325]
[1768703645789,0.02034734,142.34,142.31,2.4328325]
[1768703648694,7.0457794,142.34,142.31,2.4328325]
[1768703649385,2.12373129,142.35,142.31,2.4328325]
[1768703649386,9.14884886,142.35,142.31,2.4328325]
[1768703649563,7.05221269,142.35,142.31,2.4328325]
[1768703649989,7.05221269,142.35,142.32,2.4328325]
[1768703650187,7.05221269,142.35,142.32,2.4028325]
[1768703651465,0.02709512,142.35,142.32,2.4028325]
[1768703653695,7.05203365,142.35,142.32,2.4028325]
[1768703654491,2.12373129,142.36,142.32,2.4028325]
[1768703654492,0.06510296,142.36,142.33,2.4328325]
[1768703654994,7.08959019,142.36,142.33,2.4328325]
[1768703656592,0.06510296,142.36,142.33,2.4328325]
[1768703656976,0.06510296,142.36,142.33,9.4587389]
[1768703657174,7.09322103,142.38,142.34,2.4328325]
[1768703657376,7.09291314,142.39,142.35,2.4328325]
[1768703657684,9.21664443,142.39,142.35,2.4328325]
[1768703658077,0.07129237,142.38,142.35,2.4328325]
[1768703660900,7.09744971,142.39,142.36,2.4328325]
[1768703663703,7.09744971,142.39,142.36,2.4028325]
[1768703664696,0.07429925,142.39,142.36,2.4028325]
[1768703666606,9.22118254,142.39,142.36,2.4028325]
[1768703669204,2.24208222,142.4,142.37,2.62766222]
[1768703669410,0.11835093,142.4,142.37,2.62766222]
[1768703669988,0.11835093,142.4,142.37,2.59766222]
[1768703670706,7.14129229,142.4,142.37,2.59766222]
[1768703671508,7.02294136,142.4,142.37,2.59766222]
[1768703672104,7.1752449,142.4,142.37,2.59766222]
[1768703673298,7.1757484,142.41,142.38,2.62766222]
[1768703674508,7.17796489,142.42,142.38,2.62766222]
[1768703674698,17.55312583,142.43,142.4,2.65437184]
[1768703674699,7.02105782,142.43,142.4,2.65437184]
[1768703683913,7.02105782,142.43,142.4,2.62437184]
[1768703684302,9.34347174,142.43,142.4,2.62437184]
[1768703684696,7.21974045,142.43,142.4,2.62437184]
[1768703685504,7.21974045,142.43,142.4,2.59437184]
[1768703690813,7.21974045,142.43,142.4,2.56437184]
[1768703700114,7.02105782,142.43,142.4,2.56437184]
[1768703704939,7.30249427,142.43,142.4,2.56437184]
[1768703709214,7.02105782,142.43,142.4,2.56437184]
[1768703711540,7.02105782,142.43,142.4,4.68511315]
[1768703711717,7.02105782,142.43,142.4,2.56437184]
[1768703712917,7.0205976,142.44,142.41,2.54815213]
[1768703713239,5.22998683,142.43,142.41,2.54815213]
[1768703713445,7.0205976,142.44,142.41,2.54815213]
[1768703713646,5.22997567,142.43,142.41,2.54815213]
[1768703713821,7.0205976,142.44,142.41,2.54815213]
[1768703714122,5.22998023,142.43,142.41,2.54815213]
[1768703714321,7.0205976,142.44,142.41,2.54815213]
[1768703714651,5.23095533,142.43,142.41,2.54815213]
[1768703714945,7.0205976,142.44,142.41,2.54815213]
[1768703716337,5.23284174,142.43,142.41,2.54815213]
[1768703716519,7.0205976,142.44,142.41,2.54815213]
[1768703716720,5.23284378,142.43,142.41,2.54815213]
[1768703716923,7.0205976,142.44,142.41,2.54815213]
[1768703717121,5.23284378,142.43,142.41,2.54815213]
[1768703717322,7.31379637,142.44,142.41,2.54815213]
[1768703717633,5.23393135,142.43,142.41,2.54815213]
[1768703717835,7.31379637,142.44,142.41,2.54815213]
[1768703718018,5.23393135,142.43,142.41,2.54815213]
[1768703718341,7.31379637,142.44,142.41,2.54815213]
[1768703718527,5.23535523,142.43,142.41,2.54815213]
[1768703718723,7.31379637,142.44,142.41,2.54815213]
[1768703718921,5.23535319,142.43,142.41,2.54815213]
[1768703719131,7.31379637,142.44,142.41,2.54815213]
[1768703719338,5.23522778,142.43,142.41,2.54815213]
[1768703719531,7.31379637,142.44,142.41,2.54815213]
[1768703719820,5.23658948,142.43,142.41,2.54815213]
[1768703720133,7.31379637,142.44,142.41,2.54815213]
[1768703720436,5.23644122,142.43,142.41,2.54815213]
[1768703720635,7.0205976,142.44,142.41,2.54815213]
[1768703720821,5.23638178,142.43,142.41,2.54815213]
[1768703721022,7.0205976,142.44,142.41,2.54815213]
[1768703721217,26.56332927,142.48,142.44,2.54815213]
[1768703721423,2.65665844,142.49,142.47,2.12074131]
[1768703721625,2.65665844,142.49,142.46,2.12074131]
[1768703722420,0.2,142.52,142.48,2.55817839]
[1768703722621,0.2,142.52,142.49,4.6789197]
[1768703723021,0.2,142.52,142.46,2.55817839]
[1768703723217,7.21659655,142.52,142.48,2.55817839]
[1768703723850,0.2,142.52,142.48,11.69712957]
[1768703724447,2.80151367,142.52,142.48,11.69712957]
[1768703726946,2.80151367,142.52,142.48,9.57638826]
[1768703727146,2.60151367,142.51,142.48,7.01820987]
[1768703727633,2.60151367,142.51,142.48,9.57638826]
[1768703729022,2.60151367,142.51,142.46,4.6789197]
[1768703729230,2.60151367,142.5,142.46,2.55817839]
[1768703729854,4.72225498,142.48,142.44,2.55817839]
[1768703731749,4.72225498,142.48,142.45,9.57818541]
[1768703731955,2.12074131,142.47,142.45,2.55817839]
[1768703732151,4.72225498,142.48,142.45,2.55817839]
[1768703733652,11.74079551,142.48,142.45,2.55817839]
[1768703734560,11.74079551,142.48,142.44,9.69040911]
[1768703734756,2.79430761,142.47,142.44,9.69040911]
[1768703738756,9.81337863,142.47,142.44,2.66999056]
[1768703738939,2.79430761,142.45,142.42,2.66999056]
[1768703739354,4.91504892,142.46,142.42,9.69146249]
[1768703739638,2.79430761,142.45,142.42,9.69146249]
[1768703740466,11.93468225,142.46,142.43,2.66999056]
[1768703741175,2.79430761,142.45,142.41,7.02182562]
[1768703741353,4.91504892,142.42,142.38,9.69308429]
[1768703741655,4.91504892,142.42,142.39,2.66999056]
[1768703742440,2.79430761,142.42,142.39,9.69294736]
[1768703743247,2.79430761,142.46,142.41,2.66999056]
[1768703743551,2.79430761,142.46,142.42,2.66999056]
[1768703743753,4.91504892,142.46,142.42,2.66999056]
[1768703743965,2.79430761,142.45,142.42,2.66999056]
[1768703744462,9.81436126,142.45,142.42,2.66999056]
[1768703745565,11.93510257,142.45,142.42,2.66999056]
[1768703748348,4.91504892,142.44,142.4,2.66999056]
[1768703749552,4.91504892,142.44,142.41,2.66999056]
[1768703750062,2.79430761,142.44,142.41,2.66999056]
[1768703750374,4.91504892,142.44,142.41,2.66999056]
[1768703754475,11.9359579,142.44,142.41,2.66999056]
[1768703754673,3.12722822,142.42,142.39,9.91032596]
[1768703761768,3.12722822,142.43,142.4,2.88752745]
[1768703762483,3.12722822,142.43,142.38,2.88752745]
[1768703762985,3.12722822,142.43,142.39,9.91049254]
[1768703765000,3.12722822,142.43,142.38,7.02345835]
[1768703765001,3.12722822,142.42,142.38,7.02345835]
[1768703765177,3.12722822,142.42,142.1,1e-08]
[1768703765178,2.13524438,142.2,142.1,1e-08]
[1768703765492,2.13524438,142.2,141.82,0.4426706]
[1768703765493,8.47131678,142.04,141.96,6.96]
[1768703765688,8.47131678,142.04,141.88,35.31795814]
[1768703765689,3.12722822,142.03,141.97,6.96]
[1768703765895,3.12722822,142.0,141.97,15.38]
[1768703766072,12.97691346,141.99,141.96,8.33688785]
[1768703766389,40.17268003,141.97,141.96,8.33688785]
[1768703766612,45.35006044,141.97,141.94,15.38]
[1768703766907,5.13758268,141.96,141.93,17.50112219]
[1768703767076,40.17268003,141.97,141.93,15.38]
[1768703767389,3.12722822,141.96,141.92,22.42596726]
[1768703767589,3.12722822,141.96,141.9,2.88752745]
[1768703767590,3.12722822,141.96,141.83,35.25223453]
[1768703767773,3.12722822,141.96,141.92,5.44571257]
[1768703767975,3.12722822,141.96,141.91,5.44571257]
[1768703768169,3.12722822,141.96,141.83,35.25223453]
[1768703768170,3.12722822,141.96,141.87,15.38]
[1768703768382,3.12722822,141.96,141.91,5.44571257]
[1768703768588,3.12722822,141.96,141.87,15.38]
[1768703768792,3.12722822,141.96,141.9,17.61682903]
[1768703769088,1e-08,141.95,141.93,12.49132338]
[1768703769265,1e-08,141.95,141.93,7.04561081]
[1768703770289,1e-08,141.95,141.92,2.88752745]
[1768703770471,1e-08,141.95,141.92,15.4]
[1768703770886,1e-08,141.95,141.93,7.0455717]
[1768703771200,3.12722822,141.97,141.92,7.04622322]
[1768703771968,3.12722822,142.02,141.96,2.88752745]
[1768703772168,50.18367807,142.12,141.92,7.75084554]
[1768703772169,3.66768942,142.03,142.01,5.44571257]
[1768703772404,3.66768942,142.03,141.99,2.88752745]
[1768703772597,3.66768942,142.03,142.0,5.44571257]
[1768703772787,3.66768942,142.03,141.99,2.88752745]
[1768703772984,3.66768942,142.03,142.0,5.44571257]
[1768703773175,3.12722822,142.06,142.01,12.48747019]
[1768703773492,3.12722822,142.06,142.01,27.88747019]
[1768703773676,3.12722822,142.06,142.02,5.44571257]
[1768703774079,3.12722822,142.06,142.01,22.44175762]
[1768703774395,3.6667059,142.05,142.01,20.84571257]
[1768703775285,3.6667059,142.05,142.01,15.4]
[1768703776388,3.6667059,142.05,142.01,22.44175762]
[1768703776906,3.6667059,142.05,142.01,27.88747019]
[1768703778074,3.6667059,142.05,142.01,22.44175762]
[1768703778495,3.6667059,142.05,142.01,27.88747019]
[1768703779807,3.6667059,142.05,142.01,22.44175762]
[1768703780513,3.6667059,142.05,142.02,15.4]
[1768703780809,3.6667059,142.05,142.02,22.44114168]
[1768703781893,3.6667059,142.05,142.03,2.88752745]
[1768703782923,3.6667059,142.05,142.03,9.92814271]
[1768703783411,3.6667059,142.05,142.03,7.04061526]
[1768703783709,7.74522781,142.05,142.01,4.07751069]
[1768703783910,4.07852191,142.01,141.98,7.04324552]
[1768703784118,9.52423448,142.0,141.99,15.42]
[1768703784317,4.07852191,142.0,141.99,15.42]
[1768703785723,7.04091206,142.03,141.99,15.42]
[1768703785724,4.07852191,142.02,141.99,15.42]
[1768703786231,4.07852191,142.04,141.99,22.46246032]
[1768703786389,4.07852191,142.06,142.03,5.44571257]
[1768703786744,4.07852191,142.06,142.04,1.33930529]
[1768703787048,4.07852191,142.06,142.04,8.37941535]
[1768703787339,4.07852191,142.04,141.98,4.07751069]
[1768703787641,4.07852191,142.03,141.99,15.42]
[1768703787842,4.07852191,142.03,141.99,20.86571257]
[1768703788036,4.07852191,142.03,142.0,15.42]
[1768703788750,4.07852191,142.03,142.0,22.46179673]
[1768703788925,4.07852191,142.09,142.03,4.07751069]
[1768703789234,4.07852191,142.08,142.04,15.42]
[1768703790133,4.07852191,142.08,142.05,7.03977472]
[1768703791232,46.5,142.07,142.05,7.03977472]
[1768703791548,4.07852191,142.08,142.06,15.42]
[1768703792832,4.07852191,142.08,142.07,15.42]
[1768703793343,9.52423448,142.1,142.07,15.42]
[1768703793553,4.07852191,142.1,142.07,15.42]
[1768703793837,4.07852191,142.1,142.04,27.12389912]
[1768703794042,9.52423448,142.1,142.05,15.42]
[1768703794243,4.07852191,142.1,142.05,19.49751069]
[1768703794450,4.07852191,142.1,142.06,7.03927917]
[1768703795025,5.44571257,142.09,142.07,15.42]
[1768703795256,9.52423448,142.1,142.07,15.42]
[1768703795428,5.44571257,142.09,142.07,15.42]
[1768703795840,9.52423448,142.1,142.07,15.42]
[1768703796926,4.38417454,142.12,142.07,26.54472371]
[1768703797136,4.38417454,142.12,142.07,49.58739552]
[1768703797840,4.38417454,142.12,142.08,9.53176048]
[1768703798234,4.38417454,142.12,142.09,7.03779294]
[1768703798424,4.38417454,142.14,142.1,15.42]
[1768703800153,4.38417454,142.14,142.1,22.45705727]
[1768703801128,4.38417454,142.13,142.1,22.45705727]
[1768703803142,4.38417454,142.12,142.07,17.59654232]
[1768703803445,4.38417454,142.11,142.08,22.45791314]
[1768703803758,4.38417454,142.11,142.09,7.03771217]
[1768703805645,4.38417454,142.11,142.09,12.48342474]
[1768703806259,4.38417454,142.13,142.1,5.44571257]
[1768703806432,4.38417454,142.15,142.11,20.86571257]
[1768703807359,4.38417454,142.14,142.09,28.71824245]
[1768703807537,4.38417454,142.14,142.12,3.54398988]
[1768703808355,4.38417454,142.14,142.12,3.51398988]
[1768703809947,4.38417454,142.14,142.09,17.59448237]
[1768703810165,4.38417454,142.12,142.1,20.86571257]
[1768703810763,4.38417454,142.12,142.1,15.42]
[1768703810967,4.38417454,142.14,142.1,15.42]
[1768703811267,5.18030808,142.13,142.1,22.45684713]
[1768703811471,4.38417454,142.14,142.1,22.45684713]
[1768703811650,5.1807546,142.13,142.1,22.45684713]
[1768703811856,4.38417454,142.14,142.1,22.45684713]
[1768703812041,5.1807546,142.13,142.1,22.45684713]
[1768703812373,5.18276315,142.12,142.1,22.45684713]
[1768703812573,9.45497719,142.11,142.07,21.97660181]
[1768703812752,9.45497719,142.11,142.08,15.4]
[1768703812753,4.27294702,142.11,142.08,15.4]
[1768703813371,4.27294702,142.11,142.08,22.43798647]
[1768703814368,5.18616265,142.1,142.08,22.43798647]
[1768703814567,4.27294702,142.11,142.08,22.43798647]
[1768703814746,5.18616265,142.1,142.08,22.43798647]
[1768703814948,4.27294702,142.11,142.08,22.43798647]
[1768703814949,16.75475646,142.13,142.08,26.81792718]
[1768703815170,4.27294702,142.11,142.09,15.4]
[1768703815344,5.18617221,142.1,142.09,15.4]
[1768703817658,4.27294702,142.13,142.1,5.44571257]
[1768703819562,4.27294702,142.13,142.1,12.48290518]
[1768703820654,11.30886222,142.13,142.09,32.26340132]
[1768703821248,11.30886222,142.13,142.1,12.48300482]
[1768703821249,4.27294702,142.13,142.1,12.48300482]
[1768703821448,5.44571257,142.15,142.11,9.82565328]
[1768703821449,4.27294702,142.15,142.11,9.82565328]
[1768703821668,4.27294702,142.15,142.12,15.4]
[1768703822056,9.61703558,142.16,142.12,20.84571257]
[1768703822261,16.65147629,142.16,142.12,27.85169774]
[1768703823270,4.27294702,142.14,142.11,7.03666781]
[1768703823471,4.27294702,142.14,142.13,10.9]
[1768703823971,4.27294702,142.14,142.1,11.41703388]
[1768703824180,4.27294702,142.14,142.11,15.4]
[1768703825377,4.27294702,142.12,142.06,4.37994071]
[1768703825574,4.27294702,142.12,142.07,19.77994071]
[1768703825891,9.70529906,142.12,142.07,19.77994071]
[1768703826100,5.43235204,142.11,142.07,19.77994071]
[1768703826266,9.70529906,142.11,142.07,4.37994071]
[1768703826580,9.70529906,142.11,142.08,15.4]
[1768703827288,4.27294702,142.1,142.09,15.4]
[1768703827466,4.27294702,142.1,142.09,11.97109184]
[1768703829566,11.31024469,142.1,142.09,11.97109184]
[1768703829888,7.03729767,142.1,142.09,11.97109184]
[1768703830690,4.23021754,142.11,142.09,11.97109184]
[1768703830691,11.26720626,142.11,142.09,11.97109184]
[1768703831886,9.5743061,142.07,142.02,4.37994071]
[1768703832062,5.43235204,142.07,142.04,4.37994071]
[1768703832268,10.7764406,142.08,142.04,4.37994071]
[1768703832467,5.43235204,142.08,142.04,4.37994071]
[1768703832690,5.43235204,142.1,142.05,4.37994071]
[1768703832894,5.20527303,142.09,142.06,19.79994071]
[1768703833072,7.0378411,142.09,142.06,19.79994071]
[1768703833800,9.66256958,142.07,142.01,4.37994071]
[1768703834090,5.43235204,142.05,142.02,19.79994071]
[1768703835174,16.70186067,142.06,142.02,26.84118535]
[1768703835563,7.03929109,142.06,142.02,26.84118535]
[1768703835875,16.70056051,142.09,142.04,4.37994071]
[1768703836093,16.70056051,142.09,142.03,5.43235204]
[1768703836094,5.20514709,142.08,142.05,19.79994071]
[1768703836270,16.70056051,142.09,142.05,19.79994071]
[1768703838277,11.26820847,142.09,142.05,19.79994071]
[1768703838700,16.70056051,142.09,142.05,19.79994071]
[1768703840584,61.37503523,142.08,142.05,15.42]
[1768703840775,56.16256958,142.08,142.05,15.42]
[1768703840970,50.73021754,142.08,142.05,15.42]
[1768703842591,57.76863155,142.08,142.05,15.42]
[1768703842792,53.53841401,142.08,142.05,19.61875556]
[1768703845092,46.5,142.08,142.05,22.45973866]
[1768703845298,7.03665389,142.12,142.07,4.19875556]
[1768703845504,7.03665389,142.12,142.08,19.61875556]
[1768703845505,13.39395171,142.12,142.08,19.61875556]
[1768703845690,13.39395171,142.12,142.09,4.19875556]
[1768703845691,4.22588095,142.12,142.09,4.19875556]
[1768703847581,4.22588095,142.12,142.09,11.23654497]
[1768703849004,11.26221453,142.12,142.09,4.19875556]
[1768703856414,13.3936314,142.12,142.09,4.19875556]
[1768703856614,13.3936314,142.12,142.08,15.42]
[1768703856615,13.3936314,142.12,142.08,19.7722354]
[1768703858314,13.3936314,142.12,142.08,4.3522354]
[1768703858508,13.3936314,142.12,142.09,15.42]
[1768703859014,13.3936314,142.12,142.09,15.39]
[1768703860310,11.26221453,142.12,142.09,15.39]
[1768703861100,11.26228557,142.12,142.09,15.39]
[1768703862012,11.26228557,142.12,142.09,19.7422354]
[1768703862717,13.66672209,142.13,142.09,26.75002692]
[1768703863915,2.13141687,142.12,142.09,26.75002692]
[1768703864700,2.13141687,142.11,142.09,26.75002692]
[1768703868705,2.13141687,142.12,142.09,26.75002692]
[1768703868911,9.16775728,142.12,142.09,19.7122354]
[1768703870531,13.66704185,142.12,142.09,19.7122354]
[1768703871526,13.66704185,142.12,142.09,26.75000851]
[1768703881258,13.66704185,142.12,142.09,19.7122354]